[Event "WJCC U20 Girls 2019"]
[Site "New Delhi"]
[Date "2019.10.18"]
[Round "5.24"]
[White "Pandey Srishti"]
[Black "Pychova, Nela"]
[Result "1-0"]
[ECO "A05"]
[WhiteElo "1963"]
[BlackElo "2178"]
[Annotator "NA"]
[PlyCount "133"]
[EventDate "2019.10.15"]
[EventType "swiss"]
[EventCountry "IND"]
[SourceTitle "playchess.com"]
[Source "ChessBase"]
[SourceQuality "1"]
[TimeControl "40/5400+30:1800+30"]

1. Nf3 {[%emt 0:12:46]} Nf6 {[%emt 0:27:40]} 2. g3 {[%emt 0:00:30]} b5 {[%emt 0:00:30]} 3. Na3 {[%emt 0:00:30]} a6 {[%emt 0:00:30]} 4. c4 {[%emt 0:00:30]} b4 {[%emt 0:00:30]} 5. Nc2 {[%emt 0:00:30]} c5 {[%emt 0:00:30]} 6. Bg2 {[%emt 0:00:30]} Bb7 {[%emt 0:00:30]} 7. O-O {[%emt 0:00:30]} e6 {[%emt 0:00:30]} 8. d3 {[%emt 0:00:30]} Be7 {[%emt 0:00:30]} 9. e4 {[%emt 0:00:30]} d6 {[%emt 0:00:30]} 10. Nfe1 {[%emt 0:00:30]} Qb6 11. f4 {[%emt 0:00:30]} Nc6 {[%emt 0:01:00]} 12. Be3 {[%emt 0:01:34]} O-O {[%emt 0:05:02]} 13. g4 {[%emt 0:01:37]} Nd7 {[%emt 0:22:30]} 14. g5 {[%emt 0:08:50]} Qd8 {[%emt 0:02:54]} 15. Qg4 {[%emt 0:02:37]} f5 {[%emt 0:08:00]} 16. exf5 {[%emt 0:00:04]} exf5 {[%emt 0:01:58]} 17. Bd5+ {[%emt 0:12:27]} Kh8 {[%emt 0:00:11]} 18. Qh3 {[%emt 0:00:03]} Nb6 {[%emt 0:08:31]} 19. Bf3 {[%emt 0:17:15]} Na5 {[%emt 0:03:04]} 20. Bd2 {[%emt 0:01:37]} g6 {[%emt 0:03:42]} 21. a3 {[%emt 0:05:45]} Bxf3 {[%emt 0:02:51]} 22. Nxf3 {[%emt 0:00:02]} Nb3 {[%emt 0:01:44]} 23. axb4 {[%emt 0:02:59]} Nxa1 {[%emt 0:02:37]} 24. Rxa1 {[%emt 0:00:01]} Kg8 {[%emt 0:00:40]} 25. bxc5 {[%emt 0:01:37]} dxc5 {[%emt 0:00:39]} 26. Ne5 {[%emt 0:00:17]} Bd6 {[%emt 0:03:59]} 27. Bc3 {[%emt 0:00:08]} Bxe5 {[%emt 0:00:53]} 28. Bxe5 {[%emt 0:00:02]} Qd7 {[%emt 0:00:49]} 29. Qe3 {[%emt 0:01:11]} Qc6 {[%emt 0:00:58]} 30. b4 {[%emt 0:03:56]} Nd7 {[%emt 0:00:40]} 31. bxc5 {[%emt 0:00:25]} Qxc5 {[%emt 0:00:31]} 32. Bd4 {[%emt 0:00:05]} Qc7 {[%emt 0:00:28]} 33. Qe6+ {[%emt 0:00:55]} Rf7 {[%emt 0:00:06]} 34. Be3 {[%emt 0:01:34]} Nf8 {[%emt 0:00:48]} 35. Qb6 {[%emt 0:01:31]} Qxb6 {[%emt 0:00:30]} 36. Bxb6 {[%emt 0:00:01]} Ne6 {[%emt 0:00:35]} 37. Be3 {[%emt 0:01:05]} Rc7 {[%emt 0:00:27]} 38. Nb4 {[%emt 0:00:45]} a5 {[%emt 0:00:31]} 39. Nd5 {[%emt 0:00:05]} Rb7 {[%emt 0:00:10]} 40. Ra3 {[%emt 0:05:59]} Kf7 {[%emt 0:00:41]} 41. c5 {[%emt 0:30:47]} Rb1+ {[%emt 0:07:23]} 42. Kf2 {[%emt 0:00:00]} Rb2+ {[%emt 0:00:41]} 43. Kg3 {[%emt 0:00:00]} Rc2 {[%emt 0:01:57]} 44. Nb6 {[%emt 0:00:00]} Rd8 {[%emt 0:05:23]} 45. Nc4 {[%emt 0:00:00]} Ke7 {[%emt 0:02:16]} 46. Nxa5 {[%emt 0:00:00]} Rc8 {[%emt 0:06:17]} 47. d4 {[%emt 0:00:00]} Nc7 {[%emt 0:02:34]} 48. Nc6+ {[%emt 0:00:00]} Kd7 {[%emt 0:02:53]} 49. Nb4 {[%emt 0:00:00]} Rb2 {[%emt 0:01:19]} 50. Nd3 {[%emt 0:00:00]} Rb1 {[%emt 0:01:54]} 51. Kf2 {[%emt 0:00:00]} Ke6 {[%emt 0:00:35]} 52. Nc1 {[%emt 0:00:00]} Rcb8 {[%emt 0:01:43]} 53. Ne2 {[%emt 0:00:00]} R8b2 {[%emt 0:00:57]} 54. Kf3 {[%emt 0:01:42]} Re1 {[%emt 0:01:21]} 55. Nc3 {[%emt 0:00:18]} Rxh2 {[%emt 0:00:27]} 56. d5+ {[%emt 0:00:18]} Kd7 {[%emt 0:00:14]} 57. Bd4 {[%emt 0:01:06]} Rh3+ {[%emt 0:00:53]} 58. Kf2 {[%emt 0:01:05]} Reh1 {[%emt 0:00:20]} 59. c6+ {[%emt 0:01:07]} Ke7 {[%emt 0:00:34]} 60. Ra7 {[%emt 0:08:44]} R1h2+ {[%emt 0:00:32]} 61. Kf1 {[%emt 0:00:03]} Rh1+ {[%emt 0:00:21]} 62. Ke2 {[%emt 0:00:39]} R1h2+ {[%emt 0:00:08]} 63. Ke1 {[%emt 0:00:55]} Rh1+ {[%emt 0:00:53]} 64. Kd2 {[%emt 0:00:43]} Rc1 65. Kxc1 {[%emt 0:01:29]} Kd6 {[%emt 0:00:50]} 66. Be5+ {[%emt 0:01:15]} Kc5 {[%emt 0:00:17]} 67. Kd2 {[%emt 0:03:16]} 1-0

[Event "WJCC U20 Girls 2019"]
[Site "New Delhi"]
[Date "2019.10.18"]
[Round "5.25"]
[White "Cervantes Landeiro, Thalia"]
[Black "Mungunzul, Bat-Erdene"]
[Result "1/2-1/2"]
[ECO "D11"]
[WhiteElo "2176"]
[BlackElo "1912"]
[Annotator "NA"]
[PlyCount "172"]
[EventDate "2019.10.15"]
[EventType "swiss"]
[EventCountry "IND"]
[SourceTitle "playchess.com"]
[Source "ChessBase"]
[SourceQuality "1"]
[TimeControl "40/5400+30:1800+30"]

1. d4 {[%emt 0:00:00]} d5 {[%emt 0:00:00]} 2. c4 {[%emt 0:00:00]} c6 {[%emt 0:00:00]} 3. Nf3 {[%emt 0:00:00]} Nf6 {[%emt 0:00:00]} 4. e3 {[%emt 0:00:00]} e6 {[%emt 0:00:25]} 5. b3 {[%emt 0:00:03]} Nbd7 {[%emt 0:01:34]} 6. Bb2 {[%emt 0:00:50]} Bd6 {[%emt 0:04:15]} 7. Bd3 {[%emt 0:02:37]} Qe7 {[%emt 0:03:34]} 8. Ne5 {[%emt 0:04:44]} O-O {[%emt 0:12:02]} 9. O-O {[%emt 0:04:57]} Rd8 {[%emt 0:00:57]} 10. Nd2 {[%emt 0:05:26]} Nf8 {[%emt 0:05:48]} 11. f4 {[%emt 0:08:10]} Ne8 {[%emt 0:12:10]} 12. Qf3 {[%emt 0:11:32]} f6 {[%emt 0:01:46]} 13. Ng4 {[%emt 0:00:20]} b6 {[%emt 0:04:26]} 14. Qh3 {[%emt 0:13:14]} Bb7 {[%emt 0:05:30]} 15. cxd5 {[%emt 0:04:10]} cxd5 {[%emt 0:03:52]} 16. f5 {[%emt 0:04:42]} exf5 {[%emt 0:07:18]} 17. Bxf5 {[%emt 0:04:49]} Bb4 {[%emt 0:04:49]} 18. Nf3 {[%emt 0:04:13]} Nd6 {[%emt 0:05:52]} 19. Nh4 {[%emt 0:05:52]} Bc8 {[%emt 0:01:33]} 20. a3 {[%emt 0:06:09]} Nxf5 {[%emt 0:02:15]} 21. Nxf5 {[%emt 0:00:48]} Bxf5 {[%emt 0:00:09]} 22. Rxf5 {[%emt 0:00:09]} Bd6 {[%emt 0:01:30]} 23. Qf3 {[%emt 0:03:56]} Qe6 {[%emt 0:02:15]} 24. Rf1 {[%emt 0:02:48]} Be7 {[%emt 0:03:20]} 25. Qg3 {[%emt 0:01:10]} Kh8 {[%emt 0:00:40]} 26. Rh5 {[%emt 0:01:35]} Rac8 {[%emt 0:01:24]} 27. e4 {[%emt 0:04:14]} Qxe4 {[%emt 0:08:42]} 28. Re1 {[%emt 0:01:35]} Qg6 {[%emt 0:00:22]} 29. Rh3 {[%emt 0:01:24]} Bd6 {[%emt 0:00:24]} 30. Qf3 {[%emt 0:01:00]} Re8 {[%emt 0:00:19]} 31. Ne3 {[%emt 0:01:14]} Re4 {[%emt 0:02:11]} 32. Rf1 {[%emt 0:01:10]} Qg5 {[%emt 0:00:59]} 33. Nf5 {[%emt 0:02:04]} Bb8 {[%emt 0:00:41]} 34. Ng3 {[%emt 0:01:13]} Re3 {[%emt 0:00:57]} 35. Qf5 {[%emt 0:00:43]} Qxf5 {[%emt 0:00:40]} 36. Nxf5 {[%emt 0:00:02]} Rxh3 {[%emt 0:00:10]} 37. gxh3 {[%emt 0:00:02]} Rc2 {[%emt 0:00:45]} 38. Rf2 {[%emt 0:00:20]} Rxf2 {[%emt 0:00:20]} 39. Kxf2 {[%emt 0:00:02]} Ng6 {[%emt 0:00:11]} 40. Ne3 {[%emt 0:02:06]} Ne7 {[%emt 0:00:20]} 41. Kg2 {[%emt 0:30:33]} Kg8 {[%emt 0:30:43]} 42. h4 {[%emt 0:00:00]} h5 {[%emt 0:00:00]} 43. h3 {[%emt 0:00:00]} Bf4 {[%emt 0:00:00]} 44. Nc2 {[%emt 0:00:00]} Kf7 {[%emt 0:00:00]} 45. Kf3 {[%emt 0:00:00]} Bh2 {[%emt 0:00:00]} 46. Ne3 {[%emt 0:00:00]} Ke6 {[%emt 0:00:00]} 47. Ng2 {[%emt 0:00:00]} Nf5 {[%emt 0:00:00]} 48. Bc3 {[%emt 0:00:00]} Bg3 {[%emt 0:00:00]} 49. a4 {[%emt 0:00:00]} a6 {[%emt 0:00:00]} 50. Bb2 {[%emt 0:00:00]} Kf7 {[%emt 0:00:00]} 51. Bc3 {[%emt 0:00:00]} g6 {[%emt 0:00:00]} 52. Bb2 {[%emt 0:00:00]} b5 {[%emt 0:00:00]} 53. Bc3 {[%emt 0:00:04]} Bh2 {[%emt 0:00:00]} 54. Kf2 {[%emt 0:01:22]} Bc7 {[%emt 0:00:00]} 55. Ke2 {[%emt 0:01:27]} g5 {[%emt 0:00:00]} 56. hxg5 {[%emt 0:00:48]} fxg5 {[%emt 0:00:00]} 57. axb5 {[%emt 0:01:31]} axb5 {[%emt 0:00:00]} 58. Ne1 {[%emt 0:01:16]} g4 {[%emt 0:00:00]} 59. hxg4 {[%emt 0:00:07]} hxg4 {[%emt 0:00:00]} 60. Ng2 {[%emt 0:02:08]} Kg6 {[%emt 0:00:00]} 61. Kd3 {[%emt 0:00:43]} Kh5 {[%emt 0:00:00]} 62. Ke2 {[%emt 0:00:40]} g3 {[%emt 0:01:35]} 63. Kf3 {[%emt 0:00:48]} Nh4+ {[%emt 0:00:08]} 64. Nxh4 {[%emt 0:00:14]} Kxh4 {[%emt 0:00:07]} 65. Kg2 {[%emt 0:00:26]} Kg4 {[%emt 0:00:22]} 66. Be1 {[%emt 0:00:24]} Bd6 {[%emt 0:00:27]} 67. Bd2 {[%emt 0:00:15]} Bc7 {[%emt 0:00:45]} 68. Be1 {[%emt 0:00:19]} Bf4 {[%emt 0:00:05]} 69. Ba5 {[%emt 0:00:59]} Be3 {[%emt 0:00:20]} 70. Bc7 {[%emt 0:00:22]} Bxd4 {[%emt 0:00:27]} 71. Bxg3 {[%emt 0:00:07]} Be3 {[%emt 0:00:08]} 72. Bd6 {[%emt 0:00:47]} d4 {[%emt 0:00:45]} 73. Kf1 {[%emt 0:00:14]} Kf3 {[%emt 0:00:32]} 74. Ke1 {[%emt 0:00:20]} Bf4 {[%emt 0:00:52]} 75. Bc5 {[%emt 0:00:36]} Ke3 {[%emt 0:00:21]} 76. Kd1 {[%emt 0:00:11]} Kd3 {[%emt 0:00:07]} 77. Bb4 {[%emt 0:00:03]} Be5 {[%emt 0:01:27]} 78. Bd2 {[%emt 0:00:31]} Bd6 {[%emt 0:00:14]} 79. Be1 {[%emt 0:00:19]} Ba3 {[%emt 0:00:12]} 80. Bd2 {[%emt 0:00:29]} Bb2 {[%emt 0:00:26]} 81. Bb4 {[%emt 0:01:25]} Bc3 {[%emt 0:00:16]} 82. Ba3 {[%emt 0:00:08]} Ba5 {[%emt 0:00:20]} 83. Bc1 {[%emt 0:00:44]} Bc3 {[%emt 0:00:28]} 84. Ba3 {[%emt 0:00:18]} Bd2 {[%emt 0:00:59]} 85. Bc5 {[%emt 0:00:59]} Bc3 {[%emt 0:00:23]} 86. Ba3 {[%emt 0:00:54]} Ba1 {[%emt 0:00:30]} 1/2-1/2

[Event "WJCC U20 Girls 2019"]
[Site "New Delhi"]
[Date "2019.10.18"]
[Round "5.27"]
[White "Nilssen, Ellen Fredericia"]
[Black "Fretel, Liza"]
[Result "1/2-1/2"]
[ECO "A25"]
[WhiteElo "2137"]
[BlackElo "1877"]
[Annotator "RC"]
[PlyCount "65"]
[EventDate "2019.10.15"]
[EventType "swiss"]
[EventCountry "IND"]
[SourceTitle "playchess.com"]
[Source "ChessBase"]
[SourceQuality "1"]
[TimeControl "40/5400+30:1800+30"]

1. c4 {[%emt 0:00:00]} e5 {[%emt 0:00:00]} 2. Nc3 {[%emt 0:00:00]} Nc6 {[%emt 0:00:06]} 3. g3 {[%emt 0:00:00]} Bb4 {[%emt 0:00:56]} 4. Bg2 {[%emt 0:00:04]} Nf6 {[%emt 0:01:10]} 5. e4 {[%emt 0:10:08]} O-O {[%emt 0:03:10]} 6. Nge2 {[%emt 0:00:13]} Re8 {[%emt 0:01:21]} 7. a3 {[%emt 0:03:52]} Bf8 {[%emt 0:00:53]} 8. O-O {[%emt 0:00:15]} Nd4 {[%emt 0:01:49]} 9. d3 {[%emt 0:01:02]} Nxe2+ {[%emt 0:04:53]} 10. Qxe2 {[%emt 0:05:26]} c6 11. b4 a5 {[%emt 0:15:05]} 12. Rb1 {[%emt 0:09:14]} axb4 {[%emt 0:01:19]} 13. axb4 {[%emt 0:00:12]} d6 {[%emt 0:07:09]} 14. Qb2 {[%emt 0:12:10]} g6 {[%emt 0:02:20]} 15. Bd2 {[%emt 0:03:53]} Be6 {[%emt 0:01:44]} 16. Ra1 {[%emt 0:06:15]} Qd7 {[%emt 0:01:25]} 17. b5 {[%emt 0:02:18]} Bh3 {[%emt 0:05:48]} 18. Rxa8 {[%emt 0:13:05]} Rxa8 {[%emt 0:00:03]} 19. Ra1 {[%emt 0:00:50]} Rxa1+ {[%emt 0:01:01]} 20. Qxa1 {[%emt 0:00:12]} cxb5 {[%emt 0:05:14]} 21. Nxb5 {[%emt 0:01:00]} Kg7 {[%emt 0:12:25]} 22. Bb4 {[%emt 0:05:40]} Bg4 {[%emt 0:02:55]} 23. Qa3 {[%emt 0:03:34]} Ne8 {[%emt 0:01:10]} 24. Qa7 {[%emt 0:06:16]} Qc8 {[%emt 0:05:46]} 25. Qb6 {[%emt 0:05:48]} Qc6 {[%emt 0:01:35]} 26. Qd8 {[%emt 0:01:35]} Qd7 {[%emt 0:03:20]} 27. Qb6 {[%emt 0:01:48]} Qc6 {[%emt 0:00:09]} 28. Qe3 {[%emt 0:00:22]} Nc7 {[%emt 0:06:38]} 29. Nxc7 {[%emt 0:01:39]} Qxc7 {[%emt 0:00:05]} 30. h3 {[%emt 0:00:51]} Bd7 {[%emt 0:00:08]} 31. f4 {[%emt 0:00:27]} f6 {[%emt 0:02:16]} 32. Kh2 {[%emt 0:00:45]} b5 {[%emt 0:04:11]} 33. cxb5 {[%emt 0:01:57]} 1/2-1/2

[Event "WJCC U20 Girls 2019"]
[Site "New Delhi"]
[Date "2019.10.18"]
[Round "5.29"]
[White "Kairbekova, Amina"]
[Black "Ghosh Samriddhaa"]
[Result "0-1"]
[ECO "B72"]
[WhiteElo "2096"]
[BlackElo "1867"]
[Annotator "NA RC"]
[PlyCount "70"]
[EventDate "2019.10.15"]
[EventType "swiss"]
[EventCountry "IND"]
[SourceTitle "playchess.com"]
[Source "ChessBase"]
[SourceQuality "1"]
[TimeControl "40/5400+30:1800+30"]

1. e4 {[%emt 0:00:00]} c5 {[%emt 0:00:00]} 2. Nf3 {[%emt 0:00:00]} d6 {[%emt 0:00:09]} 3. d4 {[%emt 0:00:00]} cxd4 {[%emt 0:00:16]} 4. Nxd4 {[%emt 0:00:00]} Nf6 {[%emt 0:00:38]} 5. Nc3 {[%emt 0:00:01]} g6 {[%emt 0:00:32]} 6. Be3 {[%emt 0:00:05]} a6 {[%emt 0:00:15]} 7. f3 {[%emt 0:00:18]} b5 {[%emt 0:01:52]} 8. Qd2 {[%emt 0:01:09]} Bb7 {[%emt 0:01:22]} 9. O-O-O {[%emt 0:01:00]} Nbd7 {[%emt 0:02:04]} 10. g4 {[%emt 0:04:42]} h6 {[%emt 0:05:05]} 11. Kb1 {[%emt 0:04:26]} b4 {[%emt 0:00:00]} 12. Nce2 {[%emt 0:05:25]} e5 {[%emt 0:16:09]} 13. Nb3 {[%emt 0:03:20]} d5 {[%emt 0:03:09]} 14. exd5 {[%emt 0:10:52]} Nxd5 {[%emt 0:01:18]} 15. Ng3 {[%emt 0:03:05]} Qc7 {[%emt 0:12:04]} 16. Bg2 {[%emt 0:05:36]} N7f6 {[%emt 0:19:16]} 17. Ne4 {[%emt 0:26:08]} Nxe4 {[%emt 0:10:41]} 18. fxe4 {[%emt 0:00:10]} Nxe3 {[%emt 0:00:09]} 19. Qxe3 {[%emt 0:00:05]} Rc8 {[%emt 0:01:55]} 20. Rd2 {[%emt 0:00:33]} Bg7 {[%emt 0:02:12]} 21. h4 {[%emt 0:03:59]} O-O {[%emt 0:04:21]} 22. g5 {[%emt 0:01:07]} h5 {[%emt 0:00:19]} 23. Rhd1 {[%emt 0:00:09]} Rfd8 {[%emt 0:05:18]} 24. Bh3 {[%emt 0:01:00]} Rxd2 {[%emt 0:04:36]} 25. Qxd2 {[%emt 0:00:14]} Rb8 {[%emt 0:05:21]} 26. Qxb4 {[%emt 0:04:56]} Bf8 {[%emt 0:01:30]} 27. Qe1 {[%emt 0:03:49]} Bc6 {[%emt 0:00:36]} 28. Bg2 {[%emt 0:05:16]} Bb4 {[%emt 0:00:40]} 29. c3 {[%emt 0:01:30]} Bf8 {[%emt 0:00:18]} 30. c4 {[%emt 0:08:23]} Ba4 {[%emt 0:01:30]} 31. Qc3 {[%emt 0:00:08]} Qb6 {[%emt 0:00:45]} 32. c5 {[%emt 0:00:30]} Bxc5 {[%emt 0:00:29]} 33. Nxc5 {[%emt 0:02:34]} Bxd1 {[%emt 0:00:08]} 34. Nd7 {[%emt 0:01:59]} Qg1 {[%emt 0:00:22]} 35. Qc1 {[%emt 0:04:27]} Bc2+ {[%emt 0:00:13]} 0-1

[Event "WJCC U20 Girls 2019"]
[Site "New Delhi"]
[Date "2019.10.18"]
[Round "5.30"]
[White "Potluri Supreetha"]
[Black "Nastase, Andreea-Cristina"]
[Result "1-0"]
[ECO "D10"]
[WhiteElo "1767"]
[BlackElo "2077"]
[Annotator "NA RC"]
[PlyCount "49"]
[EventDate "2019.10.15"]
[EventType "swiss"]
[EventCountry "IND"]
[SourceTitle "playchess.com"]
[Source "ChessBase"]
[SourceQuality "1"]
[TimeControl "40/5400+30:1800+30"]

1. d4 {[%emt 0:00:00]} d5 {[%emt 0:00:00]} 2. Nf3 {[%emt 0:00:00]} Nf6 {[%emt 0:00:00]} 3. c4 {[%emt 0:00:00]} c6 {[%emt 0:00:00]} 4. cxd5 {[%emt 0:04:48]} cxd5 {[%emt 0:00:00]} 5. Nc3 {[%emt 0:00:08]} Nc6 {[%emt 0:00:50]} 6. Bf4 {[%emt 0:00:41]} Qb6 {[%emt 0:01:13]} 7. Na4 {[%emt 0:09:33]} Qa5+ {[%emt 0:01:02]} 8. Bd2 {[%emt 0:00:42]} Qc7 {[%emt 0:00:05]} 9. Rc1 {[%emt 0:17:14]} Bf5 {[%emt 0:03:29]} 10. Ne5 {[%emt 0:10:11]} e6 {[%emt 0:03:22]} 11. e4 {[%emt 0:24:14]} dxe4 {[%emt 0:20:22]} 12. Nxc6 {[%emt 0:08:23]} bxc6 {[%emt 0:02:43]} 13. Bb5 {[%emt 0:01:23]} Nd7 {[%emt 0:00:28]} 14. Bxc6 {[%emt 0:01:38]} Rd8 {[%emt 0:00:32]} 15. Bxe4 {[%emt 0:08:19]} Qd6 {[%emt 0:00:11]} 16. Bxf5 {[%emt 0:00:23]} exf5 {[%emt 0:00:04]} 17. O-O {[%emt 0:00:40]} Be7 {[%emt 0:00:03]} 18. Ba5 {[%emt 0:01:46]} Ra8 {[%emt 0:01:29]} 19. Bc7 {[%emt 0:01:42]} Qf6 {[%emt 0:00:58]} 20. d5 {[%emt 0:00:37]} O-O {[%emt 0:00:17]} 21. d6 {[%emt 0:00:55]} Bd8 {[%emt 0:00:04]} 22. Qd5 {[%emt 0:00:49]} Bxc7 {[%emt 0:00:40]} 23. dxc7 {[%emt 0:00:08]} Qe6 {[%emt 0:01:03]} 24. Rfd1 {[%emt 0:02:00]} Nf6 {[%emt 0:01:38]} 25. Qxa8 {[%emt 0:03:26]} 1-0

[Event "WJCC U20 Girls 2019"]
[Site "New Delhi"]
[Date "2019.10.18"]
[Round "5.31"]
[White "Nomindalai Tumurbaatar"]
[Black "Aouachria, Marwa"]
[Result "1-0"]
[ECO "A45"]
[WhiteElo "2061"]
[BlackElo "1839"]
[Annotator "NA"]
[PlyCount "153"]
[EventDate "2019.10.15"]
[EventType "swiss"]
[EventCountry "IND"]
[SourceTitle "playchess.com"]
[Source "ChessBase"]
[SourceQuality "1"]
[TimeControl "40/5400+30:1800+30"]

1. d4 {[%emt 0:23:13]} Nf6 {[%emt 0:10:59]} 2. Bf4 {[%emt 0:00:30]} g6 {[%emt 0:00:30]} 3. Nc3 {[%emt 0:00:30]} Bg7 {[%emt 0:00:30]} 4. e4 {[%emt 0:00:30]} d6 {[%emt 0:00:30]} 5. Qd2 {[%emt 0:00:30]} h6 {[%emt 0:00:30]} 6. h3 {[%emt 0:00:30]} g5 {[%emt 0:00:30]} 7. Be3 {[%emt 0:00:30]} Nbd7 {[%emt 0:00:30]} 8. O-O-O {[%emt 0:00:30]} c6 {[%emt 0:00:30]} 9. e5 {[%emt 0:00:30]} Nd5 {[%emt 0:00:30]} 10. Nxd5 {[%emt 0:00:30]} cxd5 {[%emt 0:00:30]} 11. exd6 {[%emt 0:00:30]} e6 {[%emt 0:00:30]} 12. Bd3 {[%emt 0:00:30]} Nf6 {[%emt 0:00:30]} 13. Re1 {[%emt 0:00:30]} Qxd6 {[%emt 0:08:42]} 14. f4 {[%emt 0:00:30]} g4 {[%emt 0:00:30]} 15. f5 {[%emt 0:00:30]} Ne4 {[%emt 0:12:36]} 16. Bxe4 {[%emt 0:00:20]} dxe4 {[%emt 0:00:01]} 17. hxg4 {[%emt 0:15:56]} exf5 {[%emt 0:00:21]} 18. gxf5 {[%emt 0:00:46]} Bxf5 {[%emt 0:00:18]} 19. Ne2 {[%emt 0:00:05]} O-O-O {[%emt 0:09:04]} 20. Qa5 {[%emt 0:00:44]} Bg4 {[%emt 0:09:12]} 21. Qxa7 {[%emt 0:06:22]} Bxe2 {[%emt 0:00:42]} 22. Rxe2 {[%emt 0:02:32]} Bxd4 {[%emt 0:00:19]} 23. Bxd4 {[%emt 0:01:25]} Qxd4 {[%emt 0:00:05]} 24. Qxd4 {[%emt 0:00:03]} Rxd4 {[%emt 0:00:12]} 25. c3 {[%emt 0:00:03]} Rc4 {[%emt 0:01:15]} 26. Kc2 {[%emt 0:00:12]} f5 {[%emt 0:00:56]} 27. Rh5 {[%emt 0:00:18]} f4 {[%emt 0:02:36]} 28. Rh4 {[%emt 0:04:20]} Rf8 {[%emt 0:10:15]} 29. Rxh6 {[%emt 0:02:13]} e3 {[%emt 0:04:07]} 30. Rh3 {[%emt 0:01:14]} Re4 {[%emt 0:01:04]} 31. Rf3 {[%emt 0:00:21]} Rg8 {[%emt 0:07:58]} 32. Kd3 {[%emt 0:02:24]} Ra4 {[%emt 0:02:27]} 33. c4 {[%emt 0:04:17]} Rg4 {[%emt 0:04:10]} 34. b3 {[%emt 0:01:00]} Ra6 {[%emt 0:00:09]} 35. Ke4 {[%emt 0:02:19]} Re6+ {[%emt 0:02:38]} 36. Kf5 {[%emt 0:00:31]} Reg6 {[%emt 0:00:06]} 37. Rxf4 {[%emt 0:00:26]} Rxg2 {[%emt 0:00:27]} 38. Rxe3 {[%emt 0:00:04]} R6g5+ {[%emt 0:00:43]} 39. Ke4 {[%emt 0:01:08]} Rxa2 {[%emt 0:00:21]} 40. Kd3 {[%emt 0:00:05]} Rgg2 {[%emt 0:01:10]} 41. Rf7 {[%emt 0:31:06]} Rgd2+ {[%emt 0:35:47]} 42. Kc3 {[%emt 0:00:10]} Re2 {[%emt 0:00:18]} 43. Rxe2 {[%emt 0:01:21]} Rxe2 {[%emt 0:00:03]} 44. Kb4 {[%emt 0:00:37]} Kb8 {[%emt 0:03:41]} 45. Kb5 {[%emt 0:01:52]} Ka7 {[%emt 0:00:23]} 46. b4 {[%emt 0:03:31]} Re6 {[%emt 0:01:37]} 47. c5 {[%emt 0:01:07]} Rg6 {[%emt 0:00:00]} 48. Rd7 {[%emt 0:00:00]} Rc6 {[%emt 0:00:00]} 49. Rd6 {[%emt 0:00:00]} Rc8 {[%emt 0:00:00]} 50. Ka5 {[%emt 0:00:00]} Rc6 {[%emt 0:00:00]} 51. Kb5 {[%emt 0:00:00]} Rc8 {[%emt 0:00:00]} 52. Kc4 {[%emt 0:00:00]} Rg8 {[%emt 0:00:00]} 53. Rd7 {[%emt 0:00:00]} Kb8 {[%emt 0:00:00]} 54. Kb5 {[%emt 0:00:00]} Rc8 {[%emt 0:00:00]} 55. Ka5 {[%emt 0:00:00]} Ka7 {[%emt 0:00:00]} 56. Rd5 {[%emt 0:00:00]} Rc6 {[%emt 0:00:00]} 57. Rd8 {[%emt 0:00:00]} Rc7 {[%emt 0:00:00]} 58. Kb5 {[%emt 0:00:00]} Rc6 {[%emt 0:00:00]} 59. Kc4 {[%emt 0:00:00]} Rg6 {[%emt 0:00:00]} 60. b5 {[%emt 0:00:00]} Rg4+ {[%emt 0:00:00]} 61. Kd5 {[%emt 0:00:00]} Rg5+ {[%emt 0:00:00]} 62. Kd6 {[%emt 0:00:00]} Rg6+ {[%emt 0:00:00]} 63. Kc7 {[%emt 0:00:00]} Rg5 {[%emt 0:00:44]} 64. Kd6 {[%emt 0:08:41]} Rg6+ {[%emt 0:00:55]} 65. Kd5 {[%emt 0:00:03]} Rg1 {[%emt 0:00:25]} 66. Re8 {[%emt 0:11:22]} Rd1+ {[%emt 0:00:11]} 67. Ke6 {[%emt 0:00:08]} Rb1 {[%emt 0:04:24]} 68. b6+ {[%emt 0:00:39]} Ka6 {[%emt 0:00:04]} 69. Kd6 {[%emt 0:00:14]} Rd1+ {[%emt 0:02:08]} 70. Kc7 {[%emt 0:00:07]} Rd5 {[%emt 0:00:19]} 71. c6 {[%emt 0:01:32]} Rc5 {[%emt 0:00:39]} 72. Ra8+ {[%emt 0:00:08]} Kb5 {[%emt 0:00:12]} 73. Kxb7 {[%emt 0:00:04]} Rf5 {[%emt 0:01:53]} 74. c7 {[%emt 0:00:57]} Rf7 {[%emt 0:00:19]} 75. Ra1 {[%emt 0:00:19]} Rg7 {[%emt 0:00:40]} 76. Rb1+ {[%emt 0:00:04]} Ka5 {[%emt 0:00:32]} 77. Kb8 {[%emt 0:00:05]} 1-0